Cogmind - Beta 17 @@@ ROGUE MODE // 2026.07.13 @ 10:29:58 Player: pinbox Result: Destroyed by Y-45 Defender with Heavy Assault Rifle Performance ------------- Evolutions (0) 0 Regions Visited (2) 400 Robots Destroyed (22) 110 Value Destroyed (576) 576 Prototype IDs (0) 0 Alien Tech Used (0) 0 Bonus (0) 0 TOTAL SCORE: 1086 Bonus ------- None Cogmind --------- Core Integrity 0/250 Matter 262/300 Energy 100/100 System Corruption 1% Temperature Cool (9) Movement Rolling (110) Location -10/Subcaves Parts ------- > --- POWER (1) -------- (None) > --- PROPULSION (2) --- Subdweller Monowheel Subdweller Monowheel > --- UTILITY (2) ------ Small Storage Unit Makeshift Light Armor Plating > --- WEAPON (2) ------- (None) > --- INVENTORY (8) ---- Subdweller Power Source Subdweller Monowheel Subdweller Monowheel Subdweller Optics Subdweller Optics Seismic Detector Gun Armor Peak State ------------ > --- POWER ------------ (None) > --- PROPULSION ------- Subdweller Monowheel Subdweller Monowheel > --- UTILITY ---------- Small Storage Unit Makeshift Light Armor Plating > --- WEAPON ----------- Subdweller Shrapnel Launcher > --- INVENTORY -------- Subdweller Power Source Subdweller Monowheel Subdweller Monowheel Subdweller Optics Subdweller Optics Seismic Detector Gun Armor [Rating: 13] Favorites ----------- Power Light Ion Engine Engine Light Ion Engine Propulsion Light Treads Treads Light Treads Wheel Subdweller Monowheel Utility Small Storage Unit Device Seismic Detector Storage Small Storage Unit Protection Propulsion Shielding Weapon Medium Laser Energy Gun Medium Laser Ballistic Gun Light Assault Rifle Launcher Subdweller Shrapnel Launcher Build | -11 -10 -10 ------- Run | Yrd Mat Sub Slots Evolved . | . . . Power . | . . . Propulsion . | . . . Utility . | . . . Weapon . | . . . Parts Attached 22 | 8 4 10 Power 4 | 1 1 2 Engine 4 | 1 1 2 Core . | . . . Reactor . | . . . Propulsion 5 | 2 . 3 Treads 3 | 2 . 1 Leg . | . . . Wheel 2 | . . 2 Hover . | . . . Flight . | . . . Utility 5 | 2 . 3 Device 2 | 1 . 1 Storage 1 | 1 . . Processor . | . . . Hackware . | . . . Protection 2 | . . 2 Artifact . | . . . Weapon 8 | 3 3 2 Energy Gun 6 | 2 3 1 Energy Cannon . | . . . Ballistic Gun 1 | 1 . . Ballistic Cannon . | . . . Launcher 1 | . . 1 Special Weapon . | . . . Impact Weapon . | . . . Slashing Weapon . | . . . Piercing Weapon . | . . . Special Melee Weapon . | . . . Unidentified Prototypes . | . . . Parts Lost 10 | . 2 8 Power 2 | . 1 1 Propulsion 3 | . . 3 Utility . | . . . Weapon 5 | . 1 4 Highest Loss Streak 6 | . 1 6 To Critical Strikes . | . . . Average Backups 4 | . 1 5 Power . | . . 1 Propulsion 1 | . . 1 Utility 1 | . . 1 Weapon . | . . 1 Tool/Special . | . . . Unused Backups 4 | . . 4 Power . | . . . Propulsion 2 | . . 2 Utility 2 | . . 2 Weapon . | . . . Tool/Special . | . . . Average Slot Usage (%) 97 | . 99 96 Engine 13 | . 13 12 Treads 26 | . 28 25 Device 12 | . 14 12 Storage 14 | . 14 14 Protection 1 | . . 1 Energy Gun 26 | . 28 25 Peak Build Rating 13 | 7 7 13 Average Rating 7 | 4 6 8 On Entrance 4 | . 7 7 Avg Prop Armor Cover (%) 9 | . . 9 Naked Turns . | . . . Heaviest Build 17 | 12 13 17 Greatest Support 40 | 40 40 40 Greatest Overweight (x) . | . . . Average Overweight (x) . | . . . Largest Inventory Capacity 8 | 8 8 8 Average Capacity 7 | 6 8 8 Most Carried 8 | 1 3 8 Average Carried 4 | . 1 5 Final Capacity 8 | 8 8 8 Final Carried 7 | 1 3 7 Class Distribution -------------------- 100% | Mutant Dominant Class ---------------- Mutant | -10/Materials Mutant | -10/Subcaves Resources | -11 -10 -10 ----------- Run | Yrd Mat Sub Matter Collected 505 | 261 58 186 Remotely . | . . . Salvage Created 777 | 50 456 271 Parts 41 | 6 23 12 Haulers Intercepted 1 | . 1 . Recyclers Shooed . | . . . Parts Field Recycled . | . . . Retrieved Matter . | . . . Parts Self-Destructed . | . . . Prevented . | . . . Parts Restored . | . . . Kills | -11 -10 -10 ------- Run | Yrd Mat Sub Combat Hostiles Destroyed 16 | . 9 7 Guns 13 | . 7 6 AOE 3 | . 2 1 Classes Destroyed 7 | 1 5 1 Worker 1 | . 1 . Tunneler 2 | 2 . . Hauler 1 | . 1 . Watcher 2 | . 2 . Swarmer 3 | . 3 . Grunt 6 | . 6 . Subdweller 7 | . . 7 Best Kill Streak 3 | 2 3 2 Combat Bots Only 3 | . 3 2 Max Kills in Single Turn 2 | 2 1 1 Gunslinging . | . . . Exploded 1 | . 1 1 Melee . | . . . Uniques/NPCs Destroyed . | . . . Combat | -11 -10 -10 -------- Run | Yrd Mat Sub Hostile Shots Fired 101 | . 48 53 Missed 22 | . 14 8 Hits 79 | . 34 45 Projectile 79 | . 34 45 Damage Taken 1434 | . 423 1011 Core 262 | . 99 163 Absorbed by Shields . | . . . Redirected to Shielding 36 | . . 36 Core Remaining (%) 100 | 100 . . Volleys Fired 68 | 1 37 30 Largest 2 | 2 2 2 Hottest 110 | 80 100 110 Shots Fired 132 | 2 73 57 Gun 129 | 2 73 54 Cannon . | . . . Launcher 3 | . . 3 Special . | . . . Kinetic 3 | . . 3 Thermal 110 | 1 55 54 Explosive . | . . . Electromagnetic 19 | 1 18 . Robot Hit Streak 17 | 1 15 17 Robot Miss Streak 2 | . 2 1 Penetration Max . | . . . Secondary Targets 2 | . 1 1 Max Gunslinging Chain 1 | . 1 1 Shots Hit Robots 93 | 1 47 45 Core Hits 35 | 2 19 14 Critical Kills . | . . . Critical Parts Destroyed . | . . . Critical Strikes 4 | . 2 2 Burn 4 | . 2 2 Melee Attacks . | . . . Impact . | . . . Slashing . | . . . Piercing . | . . . Sneak Attacks . | . . . Combat Hostiles . | . . . Follow-up Attacks . | . . . Damage Inflicted 1430 | 26 616 788 Guns 1174 | 26 555 593 Cannons . | . . . Explosions 248 | . 59 189 Melee . | . . . Ramming 8 | . 2 6 Kinetic 189 | . . 189 Thermal 1098 | 11 494 593 Explosive . | . . . Electromagnetic 135 | 15 120 . Impact . | . . . Slashing . | . . . Piercing . | . . . Highest Corruption 1 | . 1 1 Average Corruption 1 | . 1 1 Corruption Purged . | . . . Corruption Blocked . | . . . Effects 17 | . 1 16 Message Errors 4 | . . 4 Matter Fused 4 | . 1 3 Heat Flow Errors 2 | . . 2 Energy Discharges 1 | . . 1 Parts Rejected 1 | . . 1 Data Loss (minor) 1 | . . 1 Misfires 4 | . . 4 Overload Shots . | . . . Overflow Damage 3 | . 1 2 Projectiles . | . . . Explosions 3 | . 1 2 Melee . | . . . Knockbacks 1 | . . 1 Impact 1 | . . 1 Kinetic . | . . . Secondary . | . . . Self-Inflicted Damage 198 | . 67 131 Shots 5 | . 2 3 Rammed 4 | . . 4 Targets Rammed 5 | . 1 4 Kicked . | . . . Crushed 1 | . 1 . Highest Temperature 256 | 18 256 210 Average Temperature 66 | 12 73 35 Received Heat Transfer 375 | . 147 228 Effects 1 | . 1 . Energy Bleed 1 | . 1 . Siege Activations . | . . . Martial Activations . | . . . Shielding Activations . | . . . Robots Disrupted . | . . . Combat Hostiles . | . . . Robots Corrupted . | . . . Combat Hostiles . | . . . Parts Fried . | . . . Impact Corruptions . | . . . Robots Melted . | . . . Combat Hostiles . | . . . Parts Melted 2 | . 2 . Heat Transferred 3055 | 25 1436 1594 Parts Sabotaged . | . . . Parts Stolen . | . . . Parts Stripped . | . . . Power Chain Reactions 2 | . 2 . Alert | -11 -10 -10 ------- Run | Yrd Mat Sub Maximum Alert Level . | . . . Low Security (%) 100 | 100 100 . Level 1 . | . . . Level 2 . | . . . Level 3 . | . . . Level 4 . | . . . Level 5 . | . . . High Security . | . . . Max Security . | . . . Peak Influence 68 | 10 68 . Initial . | . . . Average 24 | . 27 . Influence Increases 309 | 10 299 . Destroy 0b10 Robot/C 180 | . 180 . Destroy 0b10 Robot/NC 30 | 10 20 . Destroy Leader 46 | . 46 . Successful Hack 14 | . 14 . Destroy Structure 9 | . 9 . Partial Spotted 15 | . 15 . Lose Combat Pursuer 15 | . 15 . Influence Decreases 309 | 10 299 . Time Decay 289 | 10 279 . Lost Part 20 | . 20 . Squads Dispatched 2 | . 2 . Investigation . | . . . Extermination . | . . . Reinforcement 2 | . 2 . Assault . | . . . Garrison . | . . . Intercept . | . . . Searches Triggered . | . . . Construction Impeded . | . . . Haulers Reinforced . | . . . Active Scanning Responses . | . . . Cargo Convoy Interrupts . | . . . Stealth | -11 -10 -10 --------- Run | Yrd Mat Sub Distress Signals . | . . . Communications Jammed . | . . . Distress Signals . | . . . Times Spotted 26 | . 18 8 Peak Tracking Total 4 | . 4 3 Tactical Retreats 1 | . 1 . Traps | -11 -10 -10 ------- Run | Yrd Mat Sub Traps Triggered 1 | . 1 . Indirectly . | . . . Trap Hack Attempts . | . . . Triggered . | . . . Disarmed . | . . . Reprogrammed . | . . . Reused . | . . . Traps Extracted . | . . . Installed . | . . . Triggered . | . . . Machines | -11 -10 -10 ---------- Run | Yrd Mat Sub Machines Disabled . | . . . Max in Single Turn . | . . . Machines Repaired . | . . . Machines Dismantled . | . . . Machines Sabotaged . | . . . Overloaded Fab Kills . | . . . Hacking | -11 -10 -10 --------- Run | Yrd Mat Sub Machines Accessed 4 | . 2 2 Terminals 2 | . 2 . Fabricators . | . . . Repair Stations . | . . . Recycling Units . | . . . Scanalyzers . | . . . Garrison Access . | . . . Total Hacks 8 | . 5 3 Successful 4 | . 1 3 Failed 4 | . 4 . Catastrophic 1 | . 1 . Database Lockouts . | . . . Manual 5 | . 5 . Terminals 5 | . 5 . Fabricators . | . . . Repair Stations . | . . . Recycling Units . | . . . Scanalyzers . | . . . Garrison Access . | . . . Terminal Hacks 4 | . 1 3 Record 1 | . . 1 Open Door 1 | . . 1 Zone Layout 1 | . 1 . Release Object 1 | . . 1 Fabricator Hacks . | . . . Repair Station Hacks . | . . . Recycling Unit Hacks . | . . . Scanalyzer . | . . . Garrison Access Hacks . | . . . Unauthorized Hacks . | . . . Terminals . | . . . Fabricators . | . . . Repair Stations . | . . . Recycling Units . | . . . Scanalyzers . | . . . Garrison Access . | . . . Data Cores Recovered . | . . . Used . | . . . Hacking Detections 2 | . 2 . Full Trace Events . | . . . Feedback Events . | . . . Feedback Blocked . | . . . Robot Schematics Acquired . | . . . Robots Built . | . . . Authchips . | . . . Time . | . . . Total Robot Build Rating . | . . . Part Schematics Acquired . | . . . Parts Built . | . . . Authchips . | . . . Time . | . . . Total Part Build Rating . | . . . Part Studies Acquired . | . . . Parts Repaired . | . . . Time . | . . . Parts Recycled . | . . . Recycled Matter . | . . . Retrieved Matter . | . . . Retrieved Components . | . . . Parts Scanalyzed . | . . . Part Schematics Acquired . | . . . Parts Damaged . | . . . Bothacking | -11 -10 -10 ------------ Run | Yrd Mat Sub Used RIF Installer . | . . . Robots Hacked . | . . . Non-combat . | . . . Combat . | . . . Robot Hacks Applied . | . . . Relay Couplers Released . | . . . Fabnet Peak Effective % . | . . . Robots Rewired . | . . . Allies Hacked . | . . . Hacks Repelled . | . . . Allies | -11 -10 -10 -------- Run | Yrd Mat Sub Total Allies . | . . . Largest Group . | . . . Highest-Rated Group . | . . . Highest-Rated Ally . | . . . Total Orders . | . . . Ally Attacks . | . . . Total Damage . | . . . Kills . | . . . Allies Corrupted . | . . . Allies Melted . | . . . Intel | -11 -10 -10 ------- Run | Yrd Mat Sub Active Infowar (turns) 2117 | 12 718 1387 Optics 21 | . . 21 Seismic 2096 | 12 718 1366 Robot Analysis Total . | . . . Derelict Logs Recovered 2 | . . 2 Drone Launches . | . . . Drone Recoveries . | . . . Exploration | -11 -10 -10 ------------- Run | Yrd Mat Sub Turns Passed 2415 | 95 718 1602 Spaces Moved 1298 | 51 361 886 Core 2 | 2 . . Treads 1221 | 49 361 811 Legs . | . . . Wheels 75 | . . 75 Hover . | . . . Flight . | . . . Fastest Speed 50 | 50 160 110 Average Speed 156 | 155 160 155 Slowest Speed 160 | 160 160 160 Overloaded Moves . | . . . Propulsion Burnouts . | . . . Robots Hopped . | . . . Potential Cave-ins . | . . . Cave-ins Triggered . | . . . Exploration Rate (%) 40 | 5 58 59 Regions Visited 2 Branch Regions 1 Pre-discovered Areas 2 | . . 2 Known Exits Taken . | . . . Unknown Exits Taken 2 | 1 1 . Scrap Searched 5 | . . 5 Spaces Dug . | . . . Terrain Destroyed 50 | . 7 43 Melee . | . . . Projectile . | . . . AOE 50 | . 7 43 Terrain Rammed . | . . . Walls Destroyed . | . . . Machines Disabled . | . . . Actions | -11 -10 -10 --------- Run | Yrd Mat Sub Total 1545 | 62 427 1056 Wait 116 | . 20 96 Move 1296 | 50 360 886 Hop . | . . . Pick Up 14 | 1 3 10 Fast Attach 11 | 8 1 2 Attach 14 | . 1 13 Detach 9 | 1 . 8 Swap 4 | . 2 2 Drop 7 | 1 2 4 Fire 68 | 1 37 30 Melee . | . . . Ram . | . . . Kick . | . . . Crush 5 | . 1 4 Escape Stasis . | . . . Rewire . | . . . Trap . | . . . Miscellaneous 1 | . . 1 Route ------- -11/Scrapyard -10/Materials (discovered 2 exits: [*Mat] / *Sub) -10/Subcaves (discovered 1 exit: [*Mat]) History --------- Turn | Location | Event 13 | -11/Scrapyard | Discovered new exit (range 15) 96 | -11/Scrapyard | Entered Materials 309 | -10/Materials | Build established: Mutant 472 | -10/Materials | Discovered new exit (range 9) 731 | -10/Materials | Discovered new exit (range 8) 814 | -10/Materials | Entered Subcaves 826 | -10/Subcaves | Learned location of Zion (-6) 1054 | -10/Subcaves | Learned 2 Materials zone layouts 1169 | -10/Subcaves | A swath of the cavern ceiling suddenly collapsed 1230 | -10/Subcaves | Discovered new exit (range 9) 1456 | -10/Subcaves | Met a Zionite searching for "candidates" 1672 | -10/Subcaves | Released subatomizers from SUBCON Basin 2256 | -10/Subcaves | A Subdweller sparked back to life 2258 | -10/Subcaves | Core integrity fell below 50% 2344 | -10/Subcaves | Core integrity fell below 20% 2348 | -10/Subcaves | Lost 6 parts (1p3n2w) 2350 | -10/Subcaves | Found Prototype Protection 2416 | -10/Subcaves | Destroyed by Y-45 Defender with Heavy Assault Rifle Last Messages --------------- 02306_ System corrupted: Matter fused (-8). 02307_ Slammed into TN-QC7(R). 02308_ TN-QC7(R) knocked back. 02309_ Subatomizers dissect the Seismic Detector. 02310_ Slammed into TN-QC7(R). 02311_ Lgt. Ion Engine destroyed. 02314_ Acquired 10 matter. 02317_ Lgt. Treads destroyed. 02345_ TN-QC7(R) destroyed. 02350_ Acquired Prototype Protection. 02372_ Acquired Sub. Monowheel. 02374_ Acquired Seismic Detector. 02376_ Acquired 27 matter. 02378_ Acquired Sub. Optics. 02379_ Acquired 40 matter. 02382_ Sub. Monowheel shoots sparks and powers down. 02409_ Sub. Shrapnel Launcher destroyed. 02409_ Destroyed Sub. Shrapnel Launcher. Map ----- +----------------------------------------------------+ | ???????????????????????????????????# ##? | | ???????????????????????????????????# #? | | ???????????????????????????????????# ! ##? | | ??????????????????????????????????## #?? | | ??????????????????????????????????# """"## #?? | | ??????????????????????????????????# " ##########?? | | ??????????????????????????????????## #?????????? | | ???????????????????????????????????# ##?????????? | | ??????????????????????????????????## ##?????????? | | ?????????????????????????????????## #?????????? | | ?????????????????????????????????# #?????????? | | ?????????????????????????????????## ##????????? | | ??????????????????????????????????## ##???????? | | ?????????????????????????????"###### #???????? | | ?????????????????????????????# " # & ##???????? | | ?????????????????????????????# ### #???????? | | ?????????????????????????????# %## #???????? | | ?????????????????????????????# " "## ##?####?## | | ?????????????????????????????# " ## ### ### | | ?????????????????????????????######## ### | | ???????????????????????????????# ## #" | | ???????????????????????????????# ## ## | | ?????????????????????###?????##"# ##" | | ???????????????## #"## ######; ; # | | ???????????????"" " ;; % | | ???????????????"""" @ ; | | ?????????????????## # ;;Y; #### | | ????????????????????### ;##??# " " | | ??????????????????????## ; ;; #??# ## ### | | ???????????????????????## ;;;;;###?# ####?? | | ????????????????????????# #######???# ## #????? | | ????????????????????????####?????????##?# ????? | | ????????????????????????????????????????# ???? | | ???????????????????????????????????????? ??? | | ???????????????????????????????????????# #???? | | ??????????????????????????????????????? #???? | | ?????????????????????????????????????? ##???? | | ?????????????????????????????????????? ###????? | | ????????????????????????????????????? ##??????? | | ????????????????????????????????????? ##????????? | | ???????????????????????????????????? ??????????? | | ??????????????????????????????????? ??????????? | | ???????????????????????????????????? ???????????? | | ?????????????????????????????????????"???????????? | | ?????????????????????????????????????????????????? | | ?????????????????????????????????????????????????? | | ?????????????????????????????????????????????????? | | ?????????????????????????????????????????????????? | | ?????????????????????????????????????????????????? | | ??????????####??????????????#????????????????????? | +----------------------------------------------------+ Best States ------------- Heat Dissipation 25 Energy Generation 15 Energy Capacity 200 Matter Stores 300 Matter Capacity 300 Sight Range 21 Terrain Scan Density 10 Armor Coverage 100 Propulsion Shielding 33 Evasion (%) 40 Recoil Reduction 2 Item Schematics ----------------- None Robot Schematics ------------------ None Fabricated ------------ Nothing Repaired ---------- Nothing Studied --------- None Alien Tech Used ----------------- None Achievements -------------- None Challenges ------------ None Game ------ Seed ShadeArcsightCarapace Manual? 0 Play Time 00:14:24 Cumulative 44.9 hours Start 2026.07.13 @ 10:17:37 End 2026.07.13 @ 10:29:58 Sessions 1 Manual Loads 0 Difficulty Rogue Special Mode None Game No. 51 Rogue 51 Adventurer 0 Explorer 0 Win Type - Total 1 Types 1/0/0/0/0/0/0/0/0/0 Lore% 42 Gallery% 35 Achievement% 34 Wizard Run 0 Options --------- Layout 1 ASCII 0 Keyboard 1 Movement Numpad Keybinds 1 Fullscreen 2 Font 24/Smallcaps Map View 50x40 Zoom Use 0% Tactical HUD 1 Map Filters NONE Filters NONE Steam 1 RUN: c3a06160-e224-4cf7-ba3b-bf060f00efaa